fUSD/lending_fUSD_20250814
["ID","MTS","AMOUNT","RATE_DAILY","PERIOD"]
[379219524,1755195033806,-500.0,0.00025753,2]
[379219525,1755195033816,-150.0,0.00025753,2]
[379219526,1755195033826,-150.0,0.00025753,2]
[379219527,1755195033836,-500.0,0.00025753,2]
[379219528,1755195033846,-150.0,0.00025753,2]
[379219529,1755195033859,-150.0,0.00025753,2]
[379219530,1755195033870,-1176.0,0.0002579,2]
[379219531,1755195033880,-462.56022402,0.00025803,2]
[379219532,1755195033890,-1446.83299605,0.00025848,2]
[379219533,1755195033902,-500.0,0.00025893,2]
[379219534,1755195033912,-208.76795095,0.00025893,2]
[379219535,1755195033922,-1000.0,0.000259,2]
[379219536,1755195033933,-505.44660241,0.00025917,2]
[379219537,1755195033943,-739.0,0.00025976,2]
[379219538,1755195033953,-500.0,0.00025976,2]
[379219539,1755195033963,-200.0,0.00025976,2]
[379219540,1755195033973,-200.0,0.00025976,2]
[379219541,1755195033983,-500.0,0.00025976,2]
[379219542,1755195033993,-282.0,0.00025976,2]
[379219543,1755195034003,-200.0,0.00025976,2]
[379219544,1755195034014,-500.0,0.00026027,2]
[379219545,1755195034024,-150.0,0.00026027,2]
[379219546,1755195034034,-200.0,0.00026027,2]
[379219547,1755195034044,-500.0,0.00026027,2]
[379219548,1755195034054,-200.0,0.00026027,2]
[379219549,1755195034063,-200.0,0.00026027,2]
[379219550,1755195034073,-548.33298079,0.00026031,2]
[379219551,1755195034083,-1500.0,0.00026051,2]
[379219552,1755195034092,-591.21935918,0.00026146,2]
[379219553,1755195034102,-500.0,0.00026167,2]
[379219554,1755195034112,-1000.0,0.00026212,2]
[379219555,1755195034122,-739.0,0.0002625,2]
[379219556,1755195034132,-500.0,0.0002625,2]
[379219557,1755195034142,-500.0,0.0002625,2]
[379219558,1755195034152,-150.0,0.0002626,2]
[379219559,1755195034162,-150.0,0.0002626,2]
[379219560,1755195034173,-150.0,0.0002626,2]
[379219561,1755195034183,-150.0,0.0002626,2]
[379219562,1755195034192,-150.0,0.0002626,2]
[379219563,1755195034202,-150.0,0.0002626,2]
[379219564,1755195034212,-150.0,0.0002626,2]
[379219565,1755195034223,-634.10573757,0.0002626,2]
[379219566,1755195034232,-321.356975,0.00026301,2]
[379219567,1755195034242,-165.69221119,0.00026301,2]
[379219568,1755195034252,-500.0,0.00026301,2]
[379219569,1755195034261,-676.99211595,0.00026375,2]
[379219570,1755195034272,-500.0,0.00026399,2]
[379219571,1755195034282,-150.0,0.00026399,2]
[379219572,1755195034292,-150.0,0.00026399,2]
[379219573,1755195034301,-150.45686372,0.00026399,2]
[379219574,1755195034313,-150.0,0.00026399,2]
[379219575,1755195034323,-150.0,0.00026399,2]
[379219576,1755195034333,-150.0,0.00026399,2]
[379219577,1755195034343,-150.0,0.00026399,2]
[379219578,1755195034353,-575.0,0.00026399,2]
[379219579,1755195034363,-500.0,0.00026399,2]
[379219580,1755195034374,-500.0,0.00026399,2]
[379219581,1755195034384,-277.84,0.00026399,2]
[379219582,1755195034393,-1000.0,0.000264,2]
[379219583,1755195034403,-800.0,0.000264,9]
[379219584,1755195034412,-500.0,0.00026441,2]
[379219585,1755195034422,-1195.274,0.00026462,2]
[379219586,1755195034431,-3397.295,0.00026462,2]
[379219587,1755195034440,-893.0,0.00026462,2]
[379219588,1755195034450,-717.0,0.00026462,2]
[379219589,1755195034460,-6086.0,0.00026462,2]
[379219590,1755195034469,-2234.0,0.00026462,2]
[379219591,1755195034479,-719.87849434,0.00026489,2]
[379219592,1755195034488,-1700.0,0.000265,9]
[379219593,1755195034497,-739.0,0.00026524,2]
[379219594,1755195034507,-500.0,0.00026524,2]
[379219595,1755195034517,-500.0,0.00026524,2]
[379219596,1755195034527,-159.28289761,0.00026534,2]
[379219597,1755195034536,-150.0,0.00026534,2]
[379219598,1755195034546,-150.0,0.00026534,2]
[379219599,1755195034556,-150.0,0.00026534,2]
[379219600,1755195034565,-150.0,0.00026534,2]
[379219601,1755195034574,-160.0,0.00026573,2]
[379219602,1755195034583,-500.0,0.00026575,2]
[379219603,1755195034592,-2500.0,0.000266,9]
[379219604,1755195034602,-762.76487272,0.00026603,2]
[379219605,1755195034612,-2282.0,0.00026619,2]
[379219606,1755195034622,-2500.0,0.0002663,2]
[379219607,1755195034632,-1000.0,0.0002663,2]
[379219608,1755195034642,-1830.86382108,0.00026642,3]
[379219609,1755195034651,-1745.5026,0.00026664,2]
[379219610,1755195034661,-500.0,0.00026673,2]
[379219611,1755195034671,-150.0,0.00026673,2]
[379219612,1755195034681,-150.0,0.00026673,2]
[379219613,1755195034692,-150.0,0.00026673,2]
[379219614,1755195034702,-575.0,0.00026673,2]
[379219615,1755195034712,-500.0,0.00026673,2]
[379219616,1755195034722,-500.0,0.00026673,2]
[379219617,1755195034731,-468.3,0.00026673,2]
[379219618,1755195034740,-935.24,0.00026673,2]
[379219619,1755195034750,-240.17,0.00026676,2]
[379219620,1755195034759,-3400.0,0.000267,9]
[379219621,1755195034769,-162.71939629,0.000267,2]
[379219622,1755195034778,-1151.0,0.0002671,2]
[379219623,1755195034787,-948.79,0.00026711,2]
[379219624,1755195034797,-468.3,0.00026711,2]
[379219625,1755195034806,-468.3,0.00026711,2]
[379219626,1755195034816,-500.0,0.00026715,2]
[379219627,1755195034826,-805.65125111,0.00026718,2]
[379219628,1755195034835,-300.5457,0.00026723,2]
[379219629,1755195034844,-230.7578,0.00026723,2]
[379219630,1755195034859,-38371.20038466,0.0002673,2]
[379219631,1755195034869,-163.27746966,0.0002673,2]
[379219632,1755195034879,-1000.0,0.00026775,2]
[379219633,1755195034888,-1830.86382108,0.00026776,3]
[379219634,1755195034898,-34532.0512,0.00026776,2]
[379219635,1755195034909,-299.93138351,0.00026785,2]
[379219636,1755195034919,-2393.77401848,0.00026787,2]
[379219637,1755195034931,-352.55210904,0.00026787,2]
[379219638,1755195034941,-13758.0943637,0.00026787,2]
[379219639,1755195034951,-225.40132443,0.00026788,2]
[379219640,1755195034960,-176.27605451,0.00026788,2]
[379219641,1755195034971,-10412.35918271,0.00026788,2]
[379219642,1755195034981,-1749.59973721,0.0002679,2]
[379219643,1755195034990,-205.18063015,0.0002679,2]
[379219644,1755195034999,-10412.35918271,0.00026791,2]
[379219645,1755195035009,-299.93138351,0.00026791,2]
[379219646,1755195035019,-3301.11654885,0.00026792,2]
[379219647,1755195035030,-299.93138351,0.00026792,2]
[379219648,1755195035041,-485.57980107,0.00026792,2]
[379219649,1755195035051,-485.57980106,0.00026793,2]
[379219650,1755195035060,-38371.2003846,0.00026793,2]
[379219651,1755195035070,-1749.59973722,0.00026794,2]
[379219652,1755195035081,-389.91079857,0.00026795,2]
[379219653,1755195035091,-27435.58010351,0.00026796,2]
[379219654,1755195035100,-34037.81320122,0.00026796,2]
[379219655,1755195035110,-225.40132443,0.00026796,2]
[379219656,1755195035120,-3301.11654885,0.00026797,2]
[379219657,1755195035131,-10813.57963777,0.00026798,2]
[379219658,1755195035230,-1217.90063364,0.00026798,2]
[379219659,1755195035274,-856.17346966,0.00026798,2]
[379219660,1755195035290,-1759.65449844,0.00026798,2]
[379219661,1755195035301,-438.47196682,0.00026798,2]
[379219662,1755195035313,-18952.03299489,0.00026798,2]
[379219663,1755195035323,-739.0,0.00026798,2]
[379219664,1755195035332,-500.0,0.00026798,2]
[379219665,1755195035341,-150.0,0.00026798,2]
[379219666,1755195035351,-512.42783742,0.00026798,2]
[379219667,1755195035360,-34037.81320122,0.00026799,2]
[379219668,1755195035369,-307.77094523,0.000268,2]
[379219669,1755195035379,-205.18063015,0.000268,2]
[379219670,1755195035389,-4200.0,0.000268,9]
[379219671,1755195035399,-299.93138351,0.00026802,2]
[379219672,1755195035408,-205.18063015,0.00026803,2]
[379219673,1755195035418,-485.57980107,0.00026804,2]
[379219674,1755195035427,-1749.59973721,0.00026805,2]
[379219675,1755195035436,-389.91079857,0.00026805,2]
[379219676,1755195035446,-299.93138352,0.00026807,2]
[379219677,1755195035455,-216.99248073,0.00026808,2]
[379219678,1755195035465,-200.0,0.00026808,2]
[379219679,1755195035474,-207.77686672,0.00026808,2]
[379219680,1755195035483,-3301.11654885,0.00026812,2]
[379219681,1755195035493,-6629.81215733,0.00026813,2]
[379219682,1755195037403,3000.0,0.00030136,120]
[379219686,1755195038657,-4149.0,0.00026462,2]
[379219687,1755195038667,-394.80000001,0.00026573,2]
[379219688,1755195038678,-1199.75308,0.00026573,2]
[379219689,1755195038690,-7051.00987977,0.00026573,2]
[379219690,1755195038700,-3031.75763543,0.00026653,2]
[379219691,1755195038745,-5613.80532431,0.00026653,2]
[379219692,1755195038754,-205.18063015,0.00026796,2]
[379219693,1755195038765,-81927.16446137,0.00026813,2]
[379219694,1755195038776,-527.16,0.00026813,3]
[379219695,1755195038786,-205.18063015,0.00026814,2]
[379219696,1755195038796,-10412.35918271,0.00026815,2]
[379219697,1755195038806,-485.57980106,0.00026817,2]
[379219698,1755195038816,-27435.58010351,0.00026817,2]
[379219699,1755195038825,-4113.10793883,0.00026819,2]
[379219700,1755195038835,-2393.77401848,0.0002682,2]
[379219701,1755195038844,-1402.06763939,0.0002682,2]
[379219702,1755195038854,-1000.0,0.00026822,2]
[379219703,1755195038868,-299.93138351,0.00026823,2]
[379219704,1755195038879,-190310.13,0.00026823,2]
[379219705,1755195038889,-485.57980107,0.00026824,2]
[379219706,1755195038899,-299.93138351,0.00026829,2]
[379219707,1755195038909,-241.06390973,0.00026829,2]
[379219708,1755195038918,-500.0,0.00026829,2]
[379219709,1755195038929,-203.94073189,0.00026829,2]
[379219710,1755195038939,-208.87732646,0.00026829,2]
[379219711,1755195038949,-303.53736266,0.00026829,2]
[379219712,1755195038958,-500.0,0.00026829,2]
[379219713,1755195038968,-155.72095787,0.0002683,2]
[379219714,1755195038978,-485.57980107,0.00026831,2]
[379219715,1755195038988,-848.5376295,0.00026832,2]
[379219716,1755195038998,-1402.06763939,0.00026834,2]
[379219717,1755195039007,-485.57980107,0.00026835,2]
[379219718,1755195039023,-176.27605451,0.00026835,2]
[379219719,1755195039032,-485.57980107,0.00026835,2]
[379219720,1755195039042,-352.55210904,0.00026835,2]
[379219721,1755195039052,-9420.94460681,0.00026836,2]
[379219722,1755195039061,-485.57980107,0.00026838,2]
[379219723,1755195039071,-9839.66406874,0.00026839,2]
[379219724,1755195039080,-225.40132443,0.0002684,2]
[379219725,1755195039090,-225.40132443,0.00026841,2]
[379219726,1755195039102,-13758.0943637,0.00026841,2]
[379219727,1755195039113,-352.55210904,0.00026842,2]
[379219728,1755195039124,-13758.0943637,0.00026842,2]
[379219729,1755195039134,-1749.59973722,0.00026842,2]
[379219730,1755195039144,-34037.81320122,0.00026844,2]
[379219731,1755195039154,-485.57980106,0.00026844,2]
[379219732,1755195039164,-485.57980106,0.00026845,2]
[379219733,1755195039173,-9839.66406874,0.00026846,2]
[379219734,1755195039183,-18841.8892136,0.00026846,2]
[379219735,1755195039194,-389.91079857,0.00026846,2]
[379219736,1755195039203,-162.71939629,0.00026847,2]
[379219737,1755195039213,-34037.81320122,0.00026847,2]
[379219738,1755195039223,-352.55210904,0.00026849,2]
[379219739,1755195039233,-500.0,0.00026849,2]
[379219740,1755195039243,-2331.27,0.00026849,14]
[379219741,1755195039252,-1749.59973721,0.0002685,2]
[379219742,1755195039262,-163.27746959,0.0002685,2]
[379219743,1755195039275,-485.57980107,0.00026851,2]
[379219744,1755195039284,-13758.0943637,0.00026853,2]
[379219745,1755195039295,-299.93138352,0.00026854,2]
[379219746,1755195039305,-3301.11654885,0.00026854,2]
[379219747,1755195039314,-225.40132443,0.00026855,2]
[379219748,1755195039324,-1749.59973721,0.00026855,2]
[379219749,1755195039334,-2056.55396941,0.00026855,2]
[379219750,1755195039343,-38371.2003846,0.00026856,2]
[379219751,1755195039353,-3301.11654885,0.00026859,2]
[379219752,1755195039363,-9839.66406874,0.00026862,2]
[379219753,1755195039372,-352.55210904,0.00026863,2]
[379219754,1755195039382,-4113.10793883,0.00026864,2]
[379219755,1755195039391,-2056.55396941,0.00026865,2]
[379219756,1755195039401,-13758.0943637,0.00026867,2]
[379219757,1755195039411,-2393.77401848,0.0002687,2]
[379219758,1755195039420,-27435.58010351,0.00026871,2]
[379219759,1755195039429,-1749.59973721,0.00026872,2]
[379219760,1755195039439,-3111.0,0.00026872,2]
[379219761,1755195039448,-4113.10793883,0.00026873,2]
[379219762,1755195039458,-2056.55396941,0.00026876,2]
[379219763,1755195039467,-13758.0943637,0.00026876,2]
[379219764,1755195039477,-205.18063015,0.00026877,2]
[379219765,1755195039486,-205.18063015,0.00026879,2]
[379219766,1755195039496,-299.93138352,0.00026879,2]
[379219767,1755195039506,-9420.94460681,0.0002688,2]
[379219768,1755195039515,-3301.11654885,0.00026881,2]
[379219769,1755195039527,-1749.59973722,0.00026883,2]
[379219770,1755195039536,-2056.55396941,0.00026883,2]
[379219771,1755195039546,-307.77094523,0.00026887,2]
[379219772,1755195039555,-352.55210904,0.00026887,2]
[379219773,1755195039567,-2393.77401848,0.00026888,2]
[379219774,1755195039578,-27435.58010351,0.00026888,2]
[379219775,1755195039588,-225.40132443,0.0002689,2]
[379219776,1755195039599,-9839.66406874,0.0002689,2]
[379219777,1755195039609,-9420.94460681,0.0002689,2]
[379219778,1755195039619,-10412.35918271,0.00026891,2]
[379219779,1755195039629,-225.40132443,0.00026894,2]
[379219780,1755195039639,-485.57980107,0.00026897,2]
[379219781,1755195039649,-9420.94460681,0.00026899,2]
[379219782,1755195039660,-1659.1753411,0.000269,2]
[379219783,1755195039670,-1659.1753411,0.000269,2]
[379219784,1755195039679,-1659.1753411,0.000269,2]
[379219785,1755195039689,-800.0,0.000269,9]
[379219786,1755195039699,-1402.06763939,0.00026904,2]
[379219787,1755195039709,-1749.59973722,0.00026905,2]
[379219788,1755195039718,-299.93138352,0.00026905,2]
[379219789,1755195039728,-3301.11654885,0.00026905,2]
[379219790,1755195039738,-307.77094523,0.00026905,2]
[379219791,1755195039748,-299.93138352,0.00026907,2]
[379219792,1755195039757,-176.27605451,0.00026908,2]
[379219793,1755195039767,-1402.06763939,0.00026909,2]
[379219794,1755195039777,-19679.3281375,0.00026909,2]
[379219795,1755195039787,-18841.8892136,0.00026909,2]
[379219796,1755195039797,-1749.59973721,0.0002691,2]
[379219797,1755195039807,-9420.94460681,0.00026911,2]
[379219798,1755195039816,-1749.59973721,0.00026911,2]
[379219799,1755195039826,-1749.59973722,0.00026913,2]
[379219800,1755195039835,-27435.58010351,0.00026914,2]
[379219801,1755195039846,-3301.11654885,0.00026915,2]
[379219802,1755195039856,-225.40132443,0.00026915,2]
[379219803,1755195039870,-307.77094523,0.00026917,2]
[379219804,1755195039879,-4113.10793883,0.00026917,2]
[379219805,1755195039889,-389.91079857,0.00026918,2]
[379219806,1755195039899,-225.40132443,0.00026918,2]
[379219807,1755195039910,-38371.2003846,0.00026919,2]
[379219808,1755195039919,-389.91079857,0.0002692,2]
[379219809,1755195039929,-27435.58010351,0.00026921,2]
[379219810,1755195039940,-10412.35918271,0.00026921,2]
[379219811,1755195039949,-3301.11654885,0.00026921,2]
[379219812,1755195039959,-12405.61,0.00026921,15]
[379219813,1755195039969,-559.209,0.00026921,15]
[379219814,1755195039978,-2056.55396941,0.00026921,2]
[379219815,1755195039988,-1079.20592837,0.00026922,10]
[379219816,1755195039998,-9839.66406874,0.00026924,2]
[379219817,1755195040008,-1749.59973722,0.00026926,2]
[379219818,1755195040017,-307.77094523,0.00026927,2]
[379219819,1755195040027,-2393.77401848,0.00026928,2]
[379219820,1755195040036,-10412.35918271,0.00026928,2]
[379219821,1755195040046,-485.57980106,0.00026928,2]
[379219822,1755195040055,-1402.06763939,0.00026928,2]
[379219823,1755195040065,-307.77094523,0.00026931,2]
[379219824,1755195040075,-225.40132443,0.00026931,2]
[379219825,1755195040085,-150.0,0.00026932,2]
[379219826,1755195040094,-1402.06763939,0.00026933,2]
[379219827,1755195040104,-1659.1753411,0.00026934,2]
[379219828,1755195040114,-485.57980107,0.00026934,2]
[379219829,1755195040124,-3301.11654885,0.00026936,2]
[379219830,1755195040134,-9420.94460681,0.00026937,2]
[379219831,1755195040145,-3301.11654885,0.00026938,2]
[379219832,1755195040156,-485.57980107,0.00026939,2]
[379219834,1755195040166,-27435.58010351,0.00026939,2]
[379219835,1755195040176,-485.57980106,0.00026941,2]
[379219836,1755195040186,-23885.59,0.00026942,14]
[379219837,1755195040196,-71049.24,0.00026942,14]
[379219838,1755195040206,-26200.67,0.00026942,14]
[379219839,1755195040216,-11954.93,0.00026942,14]
[379219840,1755195040226,-2056.55396941,0.00026943,2]
[379219841,1755195040236,-299.93138351,0.00026944,2]
[379219842,1755195040246,-389.91079857,0.00026946,2]
[379219843,1755195040257,-644.05041451,0.00026947,2]
[379219844,1755195040268,-200.0,0.00026947,2]
[379219845,1755195040279,-256.72141881,0.00026947,2]
[379219846,1755195040288,-200.0,0.00026947,2]
[379219847,1755195040298,-575.0,0.00026947,2]
[379219848,1755195040307,-500.0,0.00026947,2]
[379219849,1755195040317,-500.0,0.00026947,2]
[379219850,1755195040326,-891.42400788,0.00026947,2]
[379219851,1755195040336,-485.57980106,0.00026948,2]
[379219852,1755195040346,-485.57980107,0.00026949,2]
[379219853,1755195040356,-248.17673396,0.00026949,2]
[379219854,1755195040366,-176.27605451,0.00026949,2]
[379219855,1755195040375,-225.40132443,0.00026951,2]
[379219856,1755195040385,-205.18063015,0.00026953,2]
[379219857,1755195040395,-307.77094523,0.00026954,2]
[379219858,1755195040405,-225.40132443,0.00026957,2]
[379219859,1755195040416,-3301.11654885,0.00026959,2]
[379219860,1755195040426,-13758.0943637,0.0002696,2]
[379219861,1755195040436,-3301.11654885,0.0002696,2]
[379219862,1755195040446,-9420.94460681,0.00026962,2]
[379219863,1755195040456,-389.91079857,0.00026962,2]
[379219864,1755195040466,-299.93138352,0.00026963,2]
[379219865,1755195040476,-1402.06763939,0.00026967,2]
[379219866,1755195040486,-159.77,0.00026968,2]
[379219867,1755195040495,-150.51,0.00026968,2]
[379219868,1755195040505,-303.68,0.00026968,2]
[379219869,1755195040515,-352.55210904,0.00026969,2]
[379219870,1755195040526,-1749.59973722,0.0002697,2]
[379219871,1755195040535,-163.27746959,0.0002697,2]
[379219872,1755195040545,-2393.77401848,0.0002697,2]
[379219873,1755195040556,-3301.11654885,0.00026972,2]
[379219874,1755195040566,-19679.3281375,0.00026972,2]
[379219875,1755195040576,-18841.8892136,0.00026972,2]
[379219876,1755195040586,-4113.10793883,0.00026973,2]
[379219877,1755195040596,-2393.77401848,0.00026973,2]
[379219878,1755195040606,-176.27605451,0.00026976,2]
[379219879,1755195040615,-225.40132443,0.00026976,2]
[379219880,1755195040625,-299.93138352,0.00026978,2]
[379219881,1755195040635,-176.27605451,0.00026978,2]
[379219882,1755195040644,-485.57980107,0.00026978,2]
[379219883,1755195040654,-1659.1753411,0.00026979,2]
[379219884,1755195040663,-4113.10793883,0.0002698,2]
[379219885,1755195040673,-34037.81320122,0.00026981,2]
[379219886,1755195040683,-176.27605451,0.00026983,2]
[379219887,1755195040693,-485.57980107,0.00026983,2]
[379219888,1755195040702,-4113.10793883,0.00026987,2]
[379219889,1755195040712,-500.0,0.00026989,2]
[379219890,1755195040721,-209.74730017,0.0002699,3]
[379219891,1755195040731,-225.40132443,0.00026991,2]
[379219892,1755195040740,-34037.81320122,0.00026993,2]
[379219893,1755195040750,-10412.35918271,0.00026994,2]
[379219894,1755195040759,-162.71939629,0.00026994,2]
[379219895,1755195040770,-2056.55396941,0.00026999,2]
[379219896,1755195040780,-1659.1753411,0.00027024,2]
[379219897,1755195040789,-9420.94460681,0.00027025,2]
[379219898,1755195040798,-19679.3281375,0.00027035,2]
[379219899,1755195040808,-18841.8892136,0.00027035,2]
[379219900,1755195040817,-173.61,0.00027049,2]
[379219901,1755195040826,-9839.66406874,0.0002706,2]
[379219902,1755195040835,-9420.94460681,0.00027061,2]
[379219903,1755195040844,-934.31038627,0.00027061,2]
[379219904,1755195040853,-1659.1753411,0.0002707,2]
[379219905,1755195040867,-5000.0,0.00027071,4]
[379219906,1755195040877,-739.0,0.00027072,2]
[379219907,1755195040887,-500.0,0.00027072,2]
[379219908,1755195040898,-158.51980383,0.00027087,2]
[379219909,1755195040908,-9420.94460681,0.00027088,2]
[379219910,1755195040918,-19679.3281375,0.00027098,2]
[379219911,1755195040930,-28262.8338204,0.00027098,2]
[379219912,1755195040940,-1708.74,0.000271,2]
[379219913,1755195040967,-9839.66406874,0.00027108,2]
[379219914,1755195040978,-9420.94460681,0.0002711,2]
[379219915,1755195040988,-1659.1753411,0.00027115,2]
[379219916,1755195040998,-800.00449701,0.00027118,2]
[379219917,1755195041008,-6614.46983,0.0002712,2]
[379219918,1755195041018,-444.44347967,0.00027123,2]
[379219919,1755195041034,-2331.27,0.00027123,14]
[379219920,1755195041044,-4057.0,0.00027123,2]
[379219921,1755195041053,-9420.94460681,0.00027131,2]
[379219922,1755195041423,-158.51980381,0.00027137,2]
[379219923,1755195041433,-637.0,0.00027137,2]
[379219924,1755195041443,-162.71939629,0.0002714,2]
[379219925,1755195041453,-9839.66406874,0.0002714,2]
[379219926,1755195041462,-5000.0,0.00027141,2]
[379219927,1755195041472,-9420.94460681,0.00027151,2]
[379219928,1755195041481,-1152.0,0.00027156,2]
[379219929,1755195041491,-1659.1753411,0.00027161,2]
[379219930,1755195041500,-19679.3281375,0.00027161,2]
[379219931,1755195041510,-18841.8892136,0.00027161,2]
[379219932,1755195041523,-977.19676465,0.00027176,2]
[379219933,1755195041532,-200.0,0.00027177,2]
[379219934,1755195041542,-153.26,0.00027177,2]
[379219935,1755195041552,-200.0,0.00027177,2]
[379219936,1755195041562,-200.0,0.00027178,2]
[379219937,1755195041572,-200.0,0.00027178,2]
[379219938,1755195041581,-200.0,0.00027178,2]
[379219939,1755195041591,-158.51980381,0.00027186,2]
[379219940,1755195041601,-9420.94460681,0.00027187,2]
[379219941,1755195041611,-800.00449698,0.00027194,2]
[379219942,1755195041621,-151.0,0.00027197,7]
[379219943,1755195041630,-151.0,0.00027197,7]
[379219944,1755195041640,-381.492538,0.00027197,7]
[379219945,1755195041650,-381.492538,0.00027197,7]
[379219946,1755195041659,-243.950224,0.00027197,7]
[379219947,1755195041669,-243.950224,0.00027197,7]
[379219948,1755195041679,-264.576528,0.00027197,7]
[379219949,1755195041690,-264.576528,0.00027197,7]
[379219950,1755195041699,-175.261444,0.00027197,7]
[379219951,1755195041709,-175.261444,0.00027197,7]
[379219952,1755195041718,-894.038409,0.00027197,7]
[379219953,1755195041727,-894.038409,0.00027197,7]
[379219954,1755195041737,-314.81816,0.00027197,7]
[379219955,1755195041746,-314.81816,0.00027197,7]
[379219956,1755195041756,-462.705023,0.00027197,7]
[379219957,1755195041765,-462.705023,0.00027197,7]
[379219958,1755195041778,-848.231879,0.000272,7]
[379219959,1755195041787,-848.231879,0.000272,7]
[379219960,1755195041796,-228.344162,0.000272,7]
[379219961,1755195041806,-228.344162,0.000272,7]
[379219962,1755195041815,-157.473091,0.000272,7]
[379219963,1755195041824,-157.473091,0.000272,7]
[379219964,1755195041833,-211.86673127,0.000272,7]
[379219965,1755195041842,-458.13769775,0.000272,7]
[379219966,1755195041851,-246.11159332,0.00027205,14]
[379219967,1755195041862,-1659.1753411,0.00027206,2]
[379219968,1755195041873,-205.39829438,0.00027207,2]
[379219969,1755195041882,-575.0,0.00027221,2]
[379219970,1755195041891,-500.0,0.00027221,2]
[379219971,1755195041901,-500.0,0.00027221,2]
[379219972,1755195041912,-173.4,0.00027221,2]
[379219973,1755195041922,-573.79,0.00027221,2]
[379219974,1755195041931,-360.13,0.00027221,2]
[379219975,1755195041943,-18841.8892136,0.00027224,2]
[379219976,1755195041953,-28262.8338204,0.00027233,2]
[379219977,1755195041970,-158.51980381,0.00027236,2]
[379219978,1755195041980,-412.437133,0.00027243,7]
[379219979,1755195041990,-412.437133,0.00027243,7]
[379219980,1755195041999,-2440.12438,0.00027243,7]
[379219981,1755195042009,-2440.12438,0.00027243,7]
[379219982,1755195042023,-151.0,0.00027243,7]
[379219983,1755195042034,-318.835613,0.00027243,7]
[379219984,1755195042044,-318.835613,0.00027243,7]
[379219985,1755195042054,-12000.0,0.00027243,7]
[379219986,1755195042064,-12000.0,0.00027243,7]
[379219987,1755195042074,-12000.0,0.00027243,7]
[379219988,1755195042083,-12000.0,0.00027243,7]
[379219989,1755195042093,-12000.0,0.00027243,7]
[379219990,1755195042102,-12000.0,0.00027243,7]
[379219991,1755195042112,-161.84,0.00027244,2]
[379219992,1755195042121,-180.18,0.00027249,2]
[379219993,1755195042130,-1659.1753411,0.00027252,2]
[379219994,1755195042140,-165.84,0.00027259,2]
[379219995,1755195042150,-1000.0,0.0002726,2]
[379219996,1755195042159,-1000.0,0.0002726,2]
[379219997,1755195042169,-1000.0,0.0002726,2]
[379219998,1755195042179,-1000.0,0.0002726,2]
[379219999,1755195042189,-1000.0,0.0002726,2]
[379220000,1755195042198,-1000.0,0.0002726,2]
[379220001,1755195042208,-1000.0,0.0002726,2]
[379220002,1755195042217,-1000.0,0.0002726,2]
[379220003,1755195042226,-1000.0,0.0002726,2]
[379220004,1755195042236,-1000.0,0.0002726,2]
[379220005,1755195042246,-1000.0,0.0002726,2]
[379220006,1755195042255,-1000.0,0.0002726,2]
[379220007,1755195042265,-1000.0,0.0002726,2]
[379220008,1755195042280,-1000.0,0.0002726,2]
[379220009,1755195042289,-1000.0,0.0002726,2]
[379220010,1755195042299,-1000.0,0.0002726,2]
[379220011,1755195042308,-1000.0,0.0002726,2]
[379220012,1755195042317,-1000.0,0.0002726,2]
[379220013,1755195042327,-1000.0,0.0002726,2]
[379220014,1755195042336,-1000.0,0.0002726,2]
[379220015,1755195042345,-1000.0,0.0002726,2]
[379220016,1755195042354,-1000.0,0.0002726,2]
[379220017,1755195042364,-1000.0,0.0002726,2]
[379220018,1755195042373,-1000.0,0.0002726,2]
[379220019,1755195042382,-1000.0,0.0002726,2]
[379220020,1755195042391,-540.8328,0.0002726,2]
[379220021,1755195042401,-500.0,0.00027263,2]
[379220022,1755195042410,-800.00449698,0.00027269,2]
[379220023,1755195042419,-158.51980381,0.00027285,2]
[379220024,1755195042428,-162.71939629,0.00027287,2]
[379220025,1755195042438,-1020.08314303,0.0002729,2]
[379220026,1755195042447,-390.04406027,0.0002729,2]
[379220027,1755195042456,-10000.0,0.00027297,2]